[Event "Prague Festival Challengers 2024"]
[Site "Prague"]
[Date "2024.02.29"]
[Round "3.3"]
[White "Santos Latasa, Jaime"]
[Black "L'Ami, Erwin"]
[Result "1/2-1/2"]
[ECO "B12"]
[WhiteElo "2615"]
[BlackElo "2627"]
[Annotator "TA"]
[PlyCount "87"]
[EventDate "2024.02.22"]
[EventType "tourn"]
[EventCountry "CZE"]
[SourceTitle "playchess.com"]
[Source "ChessBase"]
[SourceQuality "1"]
[TimeControl "40/5400+30:1800+30"]

{[%evp 20,87,0,0,0,0,37,-11,-16,-35,-4,-14,-15,-21,-18,-10,0,-31,-24,-30,-14,-20,-13,-14,-12,-16,-9,-25,-22,-35,0,-10,8,-32,0,-27,-6,-8,0,-24,0,-7,0,0,0,0,30,-35,-43,-73,35,-90,0,-11,0,0,0,0,0,0,0,-19,0,0,-12,-15,0,0,0,-31]} 1. e4 {[%emt 0:00:03]} c6 {[%emt 0:00:12]} 2. d4 {[%emt 0:00:21]} d5 {[%emt 0:00:09]} 3. e5 {[%emt 0:00:13]} Bf5 {[%emt 0:00:10]} 4. Nf3 {[%emt 0:00:05]} e6 {[%emt 0:00:13]} 5. c3 {[%emt 0:00:08]} Nd7 {[%emt 0:03:44]} 6. Be2 {[%emt 0:00:41] B12: Caro-Kann: Advance Variation.} a5 $1 {[%emt 0:01:48][%mdl 4] now scores much better than the old 6...Ne7.} 7. Nbd2 {[%emt 0:01:08]} a4 {[%emt 0:03:30]} 8. Nf1 {[%emt 0:00:25]} Ne7 $146 {[%emt 0:02:49]} ({Predecessor:} 8... h6 9. Ne3 Bh7 10. O-O Ne7 11. Bd2 Nf5 12. b3 Be7 13. c4 O-O 14. Bd3 Nxe3 15. Bxh7+ Kxh7 16. Bxe3 {½-½ Bartel,M (2651)-Maghsoodloo,P (2707) FIDE Grand Swiss 2023 (6)}) 9. Ne3 {[%emt 0:05:54]} Bg6 {[%emt 0:02:52]} 10. h4 {[%emt 0:10:34]} h6 {[%emt 0:02:45]} 11. h5 {[%emt 0:00:29]} Bh7 {[%emt 0:03:53]} 12. O-O {[%emt 0:02:54]} Qc7 {[%emt 0:08:39]} 13. g3 {[%emt 0:06:12]} (13. Bd3 $14) 13... c5 $11 {[%emt 0:10:40]} 14. Bb5 {[%emt 0:08:59]} cxd4 {[%emt 0:02:07]} 15. cxd4 {[%emt 0:01:51]} Qa5 {[%emt 0:00:43]} 16. Bd3 {[%emt 0:06:34]} Bxd3 {[%emt 0:01:05]} 17. Qxd3 {[%emt 0:00:04]} Nc6 {[%emt 0:00:43]} 18. a3 {[%emt 0:00:22]} Qa6 {[%emt 0:01:50]} 19. Qd1 {[%emt 0:00:21]} b5 {[%emt 0:02:00]} 20. Bd2 {[%emt 0:02:02]} Nb6 {[%emt 0:01:06]} 21. Nc2 {[%emt 0:00:58]} Nc4 {[%emt 0:01:23]} 22. Bc3 {[%emt 0:00:08]} Be7 {[%emt 0:20:47]} 23. Nfe1 {[%emt 0:02:48]} O-O {[%emt 0:02:28]} 24. Qe2 {[%emt 0:00:51]} Kh8 {[%emt 0:07:55]} 25. Nd3 {[%emt 0:01:06]} Rg8 {[%emt 0:01:22]} 26. Kg2 {[%emt 0:01:56]} Raf8 {[%emt 0:02:01]} 27. Rh1 {[%emt 0:02:59]} Qa8 {[%emt 0:01:46]} 28. Raf1 {[%emt 0:02:32]} Re8 {[%emt 0:02:26]} 29. f3 {[%emt 0:06:12]} Qc8 {[%emt 0:01:10]} 30. g4 {[%emt 0:01:54]} Rgf8 {[%emt 0:01:07]} 31. Rh3 {[%emt 0:02:07]} Kg8 {[%emt 0:05:42]} 32. f4 {[%emt 0:06:48]} f5 {[%emt 0:01:26]} 33. Nf2 {[%emt 0:08:50]} (33. Kh2 $11) 33... Bd8 $15 {[%emt 0:01:24]} 34. Nd1 {[%emt 0:04:48]} Ne7 {[%emt 0:02:32]} (34... fxg4 $17 35. Qxg4 Rf7) 35. Bb4 {[%emt 0:07:23]} (35. g5 $1 $14 {was the only good move.}) 35... Rf7 {[%emt 0:00:30]} (35... fxg4 $17 36. Rg3 Nf5 37. Rxg4 Rf7) 36. Bxe7 $11 {[%emt 0:00:34]} Bxe7 {[%emt 0:00:07]} 37. gxf5 {[%emt 0:00:04]} Rxf5 {[%emt 0:00:16]} 38. Nce3 {[%emt 0:00:26]} Rf7 {[%emt 0:00:33]} 39. Rhf3 {[%emt 0:00:35]} Ref8 {[%emt 0:01:29]} 40. Qd3 {[%emt 0:00:28]} Bd8 {[%emt 0:01:34]} 41. R1f2 {[%emt 0:34:27]} Bh4 {[%emt 0:06:10]} 42. Rf1 {[%emt 0:00:00]} Bd8 {[%emt 0:00:22]} 43. R1f2 {[%emt 0:00:00]} Bh4 {[%emt 0:00:18]} 44. Rf1 {[%emt 0:00:00]} 1/2-1/2

[Event "Prague Festival Challengers 2024"]
[Site "Prague"]
[Date "2024.02.29"]
[Round "3.4"]
[White "Korobov, Anton"]
[Black "Stalmach, Richard"]
[Result "1/2-1/2"]
[ECO "C78"]
[WhiteElo "2663"]
[BlackElo "2433"]
[Annotator "TA"]
[PlyCount "51"]
[EventDate "2024.02.22"]
[EventType "tourn"]
[EventCountry "CZE"]
[SourceTitle "playchess.com"]
[Source "ChessBase"]
[SourceQuality "1"]
[TimeControl "40/5400+30:1800+30"]

{[%evp 12,51,45,44,40,16,12,2,8,0,20,0,7,17,21,15,12,0,13,0,0,0,0,0,0,0,0,0,0,0,0,0,0,0,0,0,0,0,0,0,0,0]} 1. e4 {[%emt 0:00:04]} e5 {[%emt 0:00:12]} 2. Nf3 {[%emt 0:00:13]} Nc6 {[%emt 0:00:21]} 3. Bb5 {[%emt 0:01:40]} a6 {[%emt 0:01:02]} 4. Ba4 {[%emt 0:01:44]} Nf6 {[%emt 0:00:14]} 5. O-O {[%emt 0:01:07]} Bc5 {[%emt 0:00:40]} 6. c3 {[%emt 0:04:21]} b5 {[%emt 0:03:49]} 7. Bc2 {[%emt 0:02:02]} d5 {[%emt 0:02:58]} 8. exd5 {[%emt 0:05:00]} Qxd5 {[%emt 0:00:18] [#] The position is equal.} 9. d4 $1 {[%emt 0:03:31]} exd4 {[%emt 0:04:38]} 10. Bb3 {[%emt 0:05:16]} Qd6 {[%emt 0:08:20]} 11. Re1+ {[%emt 0:00:27]} Kf8 {[%emt 0:12:02][%cal Be8f8,Bf8g7,Bg7g6][%mdl 32]} 12. Bg5 {[%emt 0:08:41]} h6 {[%emt 0:08:47]} 13. Bxf6 {[%emt 0:01:51]} gxf6 {[%emt 0:01:41]} 14. Nbd2 {[%emt 0:04:56] [#] Threatens to win with Ne4.} dxc3 {[%emt 0:10:13]} 15. bxc3 {[%emt 0:01:00]} Kg7 {[%emt 0:03:15]} 16. Ne4 {[%emt 0:05:36]} Qxd1 {[%emt 0:00:14]} 17. Raxd1 {[%emt 0:00:11]} Bb6 {[%emt 0:02:11]} 18. Bd5 {[%emt 0:04:09]} Bb7 {[%emt 0:00:22]} 19. Nh4 {[%emt 0:02:05]} Rhe8 {[%emt 0:04:31]} 20. Nf5+ {[%emt 0:02:38]} Kg6 {[%emt 0:00:29]} 21. Nh4+ {[%emt 0:02:04] A dynamic duo of knights.} Kg7 {[%emt 0:00:11]} 22. g4 {[%emt 0:01:03]} Rad8 {[%emt 0:05:02][%cal Od8d5]} 23. Nf5+ {[%emt 0:01:57]} Kg6 {[%emt 0:00:21][%cal Od8d5] Strongly threatening ...Rxd5!} 24. Nh4+ {[%emt 0:05:21]} Kg7 {[%emt 0:00:13][%cal Od8d5] ...Rxd5! would now be deadly.} 25. Nf5+ {[%emt 0:00:28]} Kg6 {[%emt 0:00:20][%cal Od8d5] Hoping for ...Rxd5!} 26. Nh4+ {[%emt 0:00:06] Weighted Error Value: White=0.01 (flawless) /Black=0.01 (flawless) .  OK:         	White=9     	Black=9      Best:        	White=2     	Black=5} 1/2-1/2

[Event "Prague Festival Challengers 2024"]
[Site "Prague"]
[Date "2024.02.29"]
[Round "3.5"]
[White "Vaishali, Rameshbabu"]
[Black "Hrbek, Stepan"]
[Result "1-0"]
[ECO "C55"]
[WhiteElo "2481"]
[BlackElo "2426"]
[Annotator "TA"]
[PlyCount "83"]
[EventDate "2024.02.22"]
[EventType "tourn"]
[EventCountry "CZE"]
[SourceTitle "playchess.com"]
[Source "ChessBase"]
[SourceQuality "1"]
[TimeControl "40/5400+30:1800+30"]

{[%evp 11,83,14,19,18,11,22,15,3,0,-4,33,28,31,33,29,37,38,32,29,37,30,31,33,28,80,72,80,86,82,78,78,83,80,66,89,89,84,83,98,42,102,36,61,37,54,47,67,48,60,29,62,47,47,52,45,51,498,481,619,592,563,514,1108,1024,1115,1103,1094,1113,1055,1071,29979,29980,29980,9181]} 1. e4 {[%emt 0:00:22]} e5 {[%emt 0:00:15]} 2. Nf3 {[%emt 0:00:05]} Nc6 {[%emt 0:00:20]} 3. Bc4 {[%emt 0:00:05]} Nf6 {[%emt 0:00:23]} 4. d3 {[%emt 0:00:05]} Be7 {[%emt 0:00:17]} 5. O-O {[%emt 0:00:32]} O-O {[%emt 0:00:22]} 6. Nc3 {[%emt 0:00:47]} d6 {[%emt 0:00:24]} 7. a4 {[%emt 0:00:41]} Bg4 {[%emt 0:00:37]} 8. h3 {[%emt 0:00:19]} Bh5 {[%emt 0:00:39]} 9. Nd5 {[%emt 0:01:20] The position is equal.} Nxd5 {[%emt 0:08:32]} 10. Bxd5 {[%emt 0:00:12]} Bxf3 {[%emt 0:00:16]} 11. Qxf3 {[%emt 0:00:10]} Nd4 {[%emt 0:00:11][%csl LRc2,LRf3]} 12. Qd1 {[%emt 0:00:16]} c6 {[%emt 0:00:11]} 13. Ba2 {[%emt 0:01:29]} Bg5 {[%emt 0:07:35]} 14. Be3 {[%emt 0:08:49]} Bxe3 {[%emt 0:08:28]} 15. fxe3 {[%emt 0:00:03]} Ne6 {[%emt 0:00:11]} 16. Qg4 {[%emt 0:03:07]} Qe7 {[%emt 0:13:34]} 17. Rf2 {[%emt 0:13:03]} g6 {[%emt 0:02:24]} (17... Qd7 $11 {keeps the balance.}) 18. Raf1 {[%emt 0:00:53][%cal Of2f7]} Kg7 {[%emt 0:00:33]} 19. h4 {[%emt 0:06:19][%cal Bh3h4,Bh4h5][%mdl 32]} Rae8 {[%emt 0:26:15]} 20. h5 {[%emt 0:16:23]} f6 {[%emt 0:00:09]} 21. Qh4 {[%emt 0:01:43]} Ng5 {[%emt 0:00:44]} 22. Kh1 {[%emt 0:10:40]} h6 {[%emt 0:05:51]} 23. hxg6 {[%emt 0:04:21]} Kxg6 {[%emt 0:00:05] Black is weak on the light squares} 24. c3 {[%emt 0:00:56]} Kg7 {[%emt 0:01:29]} 25. a5 {[%emt 0:03:25]} (25. Bb3 $16) 25... Rd8 {[%emt 0:01:14]} (25... b6 $14) 26. b4 {[%emt 0:02:47]} ({Better is} 26. Bb3 $16) 26... Rc8 {[%emt 0:05:15][%cal Od6d5]} 27. Rf5 {[%emt 0:01:50]} Rc7 {[%emt 0:02:29]} 28. Bb3 {[%emt 0:03:21]} Rcc8 {[%emt 0:00:38]} 29. Qg4 {[%emt 0:01:04][%cal Of5f6]} Rc7 {[%emt 0:03:16][%cal Bc8c7,Bc7d7,Bd7d8][%mdl 32]} 30. d4 {[%emt 0:02:37]} Rd7 {[%emt 0:02:52]} 31. c4 {[%emt 0:04:54] White is much more active.} Rdd8 {[%emt 0:03:50]} 32. c5 $36 {[%emt 0:02:43][%mdl 2048] White has good play.} exd4 {[%emt 0:01:02]} 33. exd4 {[%emt 0:03:27] [#] Threatens to win with cxd6.} Kh8 $2 {[%emt 0:03:36][%mdl 8192] Loses the game.} (33... dxc5 $14 34. e5 (34. bxc5 Rxd4 35. R1f4 Qd8 $11) 34... fxe5) 34. cxd6 $18 {[%emt 0:01:49]} Qxd6 {[%emt 0:01:18]} 35. Qh5 {[%emt 0:03:32]} Kg7 {[%emt 0:01:34]} 36. R1f4 {[%emt 0:01:48] White wants to mate with Rh4.} Qxb4 {[%emt 0:00:33] [#]} (36... Qe7 $142 37. Rh4 Rh8) 37. Rh4 $1 {[%emt 0:00:57][%csl Gh4][%cal Rh5h6]} Qe1+ {[%emt 0:01:05]} 38. Kh2 {[%emt 0:00:03][%csl Gh4][%cal Rh5h6]} Qxh4+ {[%emt 0:00:29]} 39. Qxh4 {[%emt 0:00:03]} Rxd4 {[%emt 0:00:10]} 40. Qf4 {[%emt 0:02:44] Intending Qc7+ and mate.} Rb4 {[%emt 0:00:51]} 41. Qc7+ {[%emt 0:01:21]} Nf7 {[%emt 0:02:33]} 42. Qe7 {[%emt 0:01:13] Weighted Error Value: White=0.12 (very precise) /Black=0.43.  Loses game:     	---       	Black=1      Mistake:       	White=2     	Black=3      Inaccurate:     	White=1     	Black=2      OK:         	White=11    	Black=12     Best:        	White=2     	Black=4} (42. Rf3 $142 Rxb3 43. Rxb3 Kg6 44. Rxb7 a6 45. e5 (45. Qxc6 Nd8 $18) (45. Qg3+ Ng5 $18) 45... fxe5 46. Qxc6+ Kg5 47. Qxa6) 1-0

[Event "Prague Festival Challengers 2024"]
[Site "Prague"]
[Date "2024.03.01"]
[Round "4.1"]
[White "L'Ami, Erwin"]
[Black "Korobov, Anton"]
[Result "0-1"]
[ECO "E12"]
[WhiteElo "2627"]
[BlackElo "2663"]
[Annotator "TA"]
[PlyCount "74"]
[EventDate "2024.02.22"]
[EventType "tourn"]
[EventCountry "CZE"]
[SourceTitle "playchess.com"]
[Source "ChessBase"]
[SourceQuality "1"]
[TimeControl "40/5400+30:1800+30"]

{[%evp 20,74,6,8,0,0,17,13,20,21,10,16,25,8,16,0,0,0,11,-33,-29,-46,-27,-33,-31,-88,-84,-93,-51,-116,-113,-197,-209,-185,-200,-266,-257,-276,-266,-272,-265,-318,-279,-377,-369,-450,-471,-952,-802,-1128,-1128,-1174,-1045,-5406,-5406,-5169,-3875]} 1. d4 {[%emt 0:00:07]} Nf6 {[%emt 0:00:07]} 2. c4 {[%emt 0:00:11]} e6 {[%emt 0:00:06]} 3. Nf3 {[%emt 0:00:13]} b6 {[%emt 0:00:07]} 4. a3 {[%emt 0:00:23]} Bb7 {[%emt 0:00:20]} 5. Nc3 {[%emt 0:00:10]} d5 {[%emt 0:00:06]} 6. Bg5 {[%emt 0:00:49]} Be7 {[%emt 0:03:33]} 7. Bxf6 {[%emt 0:00:51]} Bxf6 {[%emt 0:03:17]} 8. cxd5 {[%emt 0:00:10]} exd5 {[%emt 0:00:45]} 9. Qa4+ {[%emt 0:00:11]} c6 {[%emt 0:03:07]} 10. g3 {[%emt 0:01:14]} O-O {[%emt 0:03:32]} 11. Bg2 {[%emt 0:00:54]} Na6 {[%emt 0:06:56][%cal Bb8a6,Ba6c7,Bc7e6][%mdl 32]} 12. O-O {[%emt 0:01:10]} Nc7 {[%emt 0:04:15]} 13. Rad1 {[%emt 0:03:29]} Ne6 {[%emt 0:07:43] The position is equal.} 14. Rfe1 {[%emt 0:07:44]} Re8 {[%emt 0:04:44]} 15. e4 {[%emt 0:08:12][%cal Be2e4,Be4e5][%mdl 32]} b5 {[%emt 0:04:05]} 16. Qc2 {[%emt 0:06:16]} Qb6 {[%emt 0:03:12]} 17. e5 {[%emt 0:04:24]} Be7 {[%emt 0:00:10]} 18. Ne2 {[%emt 0:00:59]} c5 {[%emt 0:03:45]} 19. Nf4 {[%emt 0:05:03][%cal Of4d5]} c4 {[%emt 0:01:57]} 20. Re3 {[%emt 0:09:16]} a5 {[%emt 0:02:54]} 21. h4 {[%emt 0:03:39]} b4 {[%emt 0:07:50]} 22. Bh3 {[%emt 0:10:48]} ({White should play} 22. Nxe6 $15 fxe6 23. Ng5) 22... Nxf4 $17 {[%emt 0:04:14]} 23. gxf4 {[%emt 0:02:55]} b3 {[%emt 0:04:16]} 24. Qd2 {[%emt 0:06:47]} (24. Qe2 $15) 24... Qg6+ {[%emt 0:02:48]} 25. Kh1 {[%emt 0:01:33]} (25. Kh2 $17 {is a better defense.}) 25... Bc8 $19 {[%emt 0:01:31]} 26. Rg1 {[%emt 0:05:24] [#]} Qh5 {[%emt 0:00:57]} (26... Qc2 27. Qxc2 bxc2 28. Bxc8 Rexc8 (28... Raxc8 29. Rc1 $11) 29. Rc1 $15) 27. Bxc8 {[%emt 0:02:23]} (27. f5 Bxf5 28. Nh2 Be4+ (28... Bxh4 29. Bxf5 Qxf5 30. Rf3 $15) 29. f3 Bf5 30. Bxf5 Qxf5) 27... Rexc8 {[%emt 0:03:08]} (27... Raxc8 28. Qxa5 Bxh4 29. Kg2 $17) 28. Rg3 {[%emt 0:00:44]} Qf5 {[%emt 0:02:11]} (28... Bxh4 $2 29. Rh3 $18) 29. Kg2 {[%emt 0:07:46]} Qxf4 {[%emt 0:02:30]} 30. h5 {[%emt 0:01:22]} Ra6 {[%emt 0:02:17]} 31. Re1 {[%emt 0:02:03]} Qf5 {[%emt 0:04:09]} 32. h6 {[%emt 0:00:24]} Rg6 {[%emt 0:01:18] Black is clearly winning.} 33. Qxa5 {[%emt 0:01:36]} (33. Qc3 $142) 33... c3 {[%emt 0:00:18]} (33... Rxh6 34. Qxd5 Rcc6 35. Qe4 Qxe4 36. Rxe4 $17) 34. bxc3 {[%emt 0:05:19]} b2 {[%emt 0:00:53]} 35. Qxd5 {[%emt 0:02:28]} Rxg3+ {[%emt 0:03:16]} (35... b1=N 36. c4 Nxa3 (36... gxh6 37. Qb7 $11) 37. Qb7 $17) (35... Rxh6 36. Qb3 $15) 36. fxg3 {[%emt 0:00:29]} Rxc3 {[%emt 0:00:30] [#] ( -> ...Rc2+)} (36... b1=N 37. c4 Rb8 (37... gxh6 38. Qb7 $11) 38. e6 Qxd5 39. cxd5 $11) 37. Qa8+ {[%emt 0:01:00]} Rc8 {[%emt 0:00:22] Weighted Error Value: White=0.82/Black=0.03 (flawless) .  Mistake:       	White=4     	---        Inaccurate:     	White=4     	Black=1      OK:         	White=7     	Black=15} 0-1

[Event "Prague Festival Challengers 2024"]
[Site "Prague"]
[Date "2024.03.01"]
[Round "4.2"]
[White "Gurel, Ediz"]
[Black "Hrbek, Stepan"]
[Result "1-0"]
[ECO "C68"]
[WhiteElo "2560"]
[BlackElo "2426"]
[Annotator "TA"]
[PlyCount "71"]
[EventDate "2024.02.22"]
[EventType "tourn"]
[EventCountry "CZE"]
[SourceTitle "playchess.com"]
[Source "ChessBase"]
[SourceQuality "1"]
[TimeControl "40/5400+30:1800+30"]

{[%evp 9,71,17,20,17,10,20,12,19,21,17,16,10,4,5,22,0,0,0,27,27,21,22,30,0,23,13,28,7,12,-18,-7,-35,15,-18,15,8,19,0,3,8,1,2,43,40,41,47,46,53,56,54,114,113,222,230,205,263,259,264,267,259,263,249,251,239]} 1. e4 {[%emt 0:00:04]} e5 {[%emt 0:00:16]} 2. Nf3 {[%emt 0:00:12]} Nc6 {[%emt 0:00:08]} 3. Bb5 {[%emt 0:00:09]} a6 {[%emt 0:00:15]} 4. Bxc6 {[%emt 0:00:12]} dxc6 {[%emt 0:00:16]} 5. O-O {[%emt 0:00:08]} Qf6 {[%emt 0:00:25]} 6. d4 {[%emt 0:00:12]} exd4 {[%emt 0:00:08]} 7. Bg5 {[%emt 0:00:05]} Qd6 {[%emt 0:00:10]} 8. Nxd4 {[%emt 0:00:06][%cal Bf3d4,Bd4b3,Bb3c5][%mdl 32] The position is equal.} Be7 {[%emt 0:00:37]} 9. Bxe7 {[%emt 0:00:16]} Nxe7 {[%emt 0:00:27]} 10. Nc3 {[%emt 0:00:06]} Bd7 {[%emt 0:01:17]} 11. Nb3 {[%emt 0:00:07]} O-O-O {[%emt 0:00:16]} (11... Qxd1 {simplifies} 12. Raxd1 b6 13. Nd2 c5) 12. Qh5 {[%emt 0:01:07]} Ng6 {[%emt 0:08:19]} 13. Rad1 {[%emt 0:00:12]} Qe5 {[%emt 0:12:06]} 14. Qxe5 {[%emt 0:00:54]} Nxe5 {[%emt 0:00:05]} 15. Nc5 {[%emt 0:07:10]} g5 {[%emt 0:11:12]} 16. f3 {[%emt 0:04:20]} Be6 {[%emt 0:13:45]} 17. b3 {[%emt 0:11:31]} a5 {[%emt 0:02:14]} 18. Kf2 {[%emt 0:03:06]} b6 {[%emt 0:01:26]} 19. Nd3 {[%emt 0:02:54]} Ng6 {[%emt 0:06:18]} 20. Ke3 {[%emt 0:06:44]} c5 {[%emt 0:02:50]} ({Better is} 20... f5 $15) 21. Nb2 {[%emt 0:00:23]} c6 {[%emt 0:02:06]} 22. Rxd8+ {[%emt 0:00:42]} Rxd8 {[%emt 0:01:15]} 23. Rd1 {[%emt 0:00:12]} Re8 {[%emt 0:01:46]} 24. g3 {[%emt 0:05:59]} f5 {[%emt 0:06:03]} 25. Kf2 {[%emt 0:07:44]} Rf8 {[%emt 0:02:07]} 26. Rd6 {[%emt 0:06:58][%csl LRc6,LRe6]} Bd7 {[%emt 0:00:31]} 27. exf5 {[%emt 0:00:34]} Rxf5 {[%emt 0:09:50]} 28. Nc4 {[%emt 0:00:14][%cal Og3g4] [#] g4! is the strong threat.} Kc7 {[%emt 0:00:17]} 29. Ne4 {[%emt 0:00:20][%cal Oc4b6] Black must now prevent Nxb6!} b5 {[%emt 0:11:24]} (29... Ne5 $1 $14) 30. Ne3 $36 {[%emt 0:00:53][%mdl 2048] White is in control. White is much more active. Excellent horsemanship.} ({But not} 30. Nxa5 $6 Ne5 $11) 30... Re5 {[%emt 0:00:01] [#]} (30... Rf8 $16 {is a better defense.} 31. Rf6 Rxf6 32. Nxf6 Nf8) 31. Rf6 $1 $18 {[%emt 0:00:35]} g4 {[%emt 0:00:03]} 32. Rf7 {[%emt 0:01:18]} ({Not} 32. Nxg4 Bxg4 33. Rf7+ Ne7 $17) 32... gxf3 {[%emt 0:00:24]} 33. Nf6 {[%emt 0:01:45]} Re7 {[%emt 0:00:41]} 34. Rxh7 {[%emt 0:01:41]} Rxh7 {[%emt 0:01:21]} 35. Nxh7 {[%emt 0:00:01]} Ne5 {[%emt 0:00:09]} 36. Ng5 {[%emt 0:00:08] Weighted Error Value: White=0.06 (flawless) /Black=0.16 (very precise) .  Mistake:       	---       	Black=3      Inaccurate:     	White=4     	Black=3      OK:         	White=15    	Black=13     Best:        	White=3     	---        Strong:       	White=1     	---} 1-0

[Event "Prague Festival Challengers 2024"]
[Site "Prague"]
[Date "2024.03.01"]
[Round "4.3"]
[White "Mishra, Abhimanyu"]
[Black "Santos Latasa, Jaime"]
[Result "1/2-1/2"]
[ECO "C54"]
[WhiteElo "2627"]
[BlackElo "2615"]
[Annotator "TA"]
[PlyCount "76"]
[EventDate "2024.02.22"]
[EventType "tourn"]
[EventCountry "CZE"]
[SourceTitle "playchess.com"]
[Source "ChessBase"]
[SourceQuality "1"]
[TimeControl "40/5400+30:1800+30"]

{[%evp 10,76,8,12,22,16,22,27,31,40,34,21,33,32,31,35,20,10,23,22,28,29,25,19,36,22,10,0,20,25,41,0,0,0,0,0,15,0,5,0,0,0,0,-6,-14,0,-8,-14,-16,-58,-49,-76,-74,-52,-16,-93,-88,-86,-80,-56,-44,-48,-54,-68,-2,-6,-12,-33,0]} 1. e4 {[%emt 0:00:02]} e5 {[%emt 0:00:25]} 2. Nf3 {[%emt 0:00:04]} Nc6 {[%emt 0:00:04]} 3. Bc4 {[%emt 0:00:08]} Bc5 {[%emt 0:00:05]} 4. c3 {[%emt 0:00:11]} Nf6 {[%emt 0:00:05]} 5. d3 {[%emt 0:00:11]} d6 {[%emt 0:00:06]} 6. O-O {[%emt 0:00:16]} a5 {[%emt 0:00:31]} 7. Re1 {[%emt 0:00:33]} O-O {[%emt 0:00:30]} 8. Bg5 {[%emt 0:00:23][%cal Bc1g5,Bg5h4,Bh4g3][%mdl 32]} h6 {[%emt 0:00:07] White has an edge.} 9. Bh4 {[%emt 0:00:23]} g5 {[%emt 0:00:15]} 10. Bg3 {[%emt 0:00:11]} Ba7 {[%emt 0:00:04]} 11. Na3 {[%emt 0:00:19]} Rb8 {[%emt 0:00:05]} 12. Bb3 {[%emt 0:02:47]} Bg4 {[%emt 0:01:36]} 13. Nc2 {[%emt 0:10:17]} b5 {[%emt 0:00:51]} 14. Ne3 {[%emt 0:08:45]} Bxe3 {[%emt 0:00:51]} 15. fxe3 {[%emt 0:01:18]} a4 {[%emt 0:03:27]} 16. Bc2 {[%emt 0:01:52]} Ne7 {[%emt 0:03:21]} 17. Rf1 {[%emt 0:14:51]} Ng6 {[%emt 0:01:14]} 18. b4 {[%emt 0:03:49]} axb3 {[%emt 0:08:21]} 19. axb3 {[%emt 0:01:47]} Kg7 {[%emt 0:06:28]} 20. b4 {[%emt 0:07:44]} Ra8 {[%emt 0:02:40]} 21. Qd2 {[%emt 0:05:17]} Rxa1 {[%emt 0:09:07]} 22. Rxa1 {[%emt 0:00:02]} Nh5 {[%emt 0:01:05]} 23. Bf2 {[%emt 0:06:53]} f5 {[%emt 0:00:49]} 24. exf5 {[%emt 0:02:18]} Bxf5 {[%emt 0:00:16]} 25. Qe1 {[%emt 0:07:21]} Qd7 {[%emt 0:04:25]} 26. Nd2 {[%emt 0:02:36]} Qc6 {[%emt 0:01:16]} 27. Ra3 {[%emt 0:01:38]} Nf6 {[%emt 0:01:13]} 28. e4 {[%emt 0:02:50] [#]} Nf4 $1 {[%emt 0:02:08][%cal Of6g4]} 29. Kh1 {[%emt 0:02:30][%cal Oe1a1]} (29. Be3 Bg6) 29... Bg6 {[%emt 0:03:02]} 30. Nb3 {[%emt 0:04:25]} Qd7 {[%emt 0:04:48] ...Qg4 would now be deadly.} 31. Nd2 {[%emt 0:02:37]} d5 {[%emt 0:05:30]} 32. Nf3 {[%emt 0:03:30] [#]} (32. Bg3 $11 {remains equal.}) 32... Re8 $1 $17 {[%emt 0:06:43]} 33. Bg3 {[%emt 0:03:30] [#]} dxe4 $1 {[%emt 0:03:58]} 34. dxe4 {[%emt 0:00:02]} Qc6 {[%emt 0:00:39] Inhibits Ra6.} 35. Nd2 $1 {[%emt 0:01:09]} Rd8 {[%emt 0:00:22]} 36. h3 {[%emt 0:01:10]} Ra8 {[%emt 0:05:46]} (36... Rd7 $15) 37. Rxa8 $11 {[%emt 0:00:24]} Qxa8 {[%emt 0:00:14]} 38. Kh2 {[%emt 0:01:59]} Qc6 {[%emt 0:02:17] Weighted Error Value: White=0.09 (flawless) /Black=0.07 (flawless) .  Mistake:       	White=1     	Black=1      Inaccurate:     	White=3     	Black=2      OK:         	White=9     	Black=13     Best:        	White=2     	---        Strong:       	White=1     	Black=2} 1/2-1/2